fUST/lending_fUST_20250817
["ID","MTS","AMOUNT","RATE_DAILY","PERIOD"]
[379865208,1755426645503,-729.95,0.00020015,2]
[379865210,1755426645513,-483.96655958,0.00020015,2]
[379865212,1755426645522,-480.0,0.00020015,2]
[379865214,1755426645532,-486.17568007,0.00020015,2]
[379865216,1755426645542,-480.0,0.00020015,2]
[379865218,1755426645551,-485.18115333,0.00020015,2]
[379865230,1755426645670,-480.0,0.00020015,2]
[379865231,1755426645680,-480.0,0.00020015,2]
[379865232,1755426645690,-292.55333489,0.00020015,2]
[379865233,1755426645700,-480.0,0.00020015,2]
[379865234,1755426645710,-1011.26,0.00020015,2]
[379865235,1755426645720,-480.0,0.00020015,2]
[379865236,1755426645729,-480.0,0.00020015,2]
[379865237,1755426645739,-511.45,0.00020015,2]
[379865239,1755426645749,-735.69,0.00020015,2]
[379865240,1755426645758,-480.0,0.00020015,2]
[379865242,1755426645767,-480.0,0.00020015,2]
[379865244,1755426645776,-480.0,0.00020015,2]
[379865246,1755426645786,-480.0,0.00020015,2]
[379865248,1755426645795,-480.0,0.00020015,2]
[379865250,1755426645804,-480.0,0.00020015,2]
[379865252,1755426645813,-480.0,0.00020015,2]
[379865254,1755426645822,-480.0,0.00020015,2]
[379865256,1755426645832,-255.12199019,0.00020015,2]
[379865258,1755426645841,-480.0,0.00020015,2]
[379865260,1755426645850,-480.0,0.00020015,2]
[379865262,1755426645858,-168.0,0.00020078,2]
[379865264,1755426645868,-500.0,0.00020082,2]
[379865266,1755426645878,-151.0,0.000201,4]
[379865268,1755426645889,-431.9864578,0.000201,2]
[379865270,1755426645899,-431.9864578,0.000201,2]
[379865272,1755426645908,-160.0,0.00020101,3]
[379865274,1755426645917,-500.0,0.00020112,2]
[379865276,1755426645926,-186.37577568,0.00020113,2]
[379865278,1755426645935,-5086.38,0.00020113,2]
[379865280,1755426645945,-480.0,0.00020113,2]
[379865282,1755426645954,-9385.83,0.00020113,2]
[379865284,1755426645963,-893.29,0.00020113,2]
[379865286,1755426645973,-480.0,0.00020114,2]
[379865288,1755426645982,-480.0,0.00020114,2]
[379865291,1755426645991,-480.0,0.00020114,2]
[379865293,1755426646000,-480.0,0.00020114,2]
[379865295,1755426646009,-480.0,0.00020114,2]
[379865297,1755426646019,-403.14133038,0.00020114,2]
[379865299,1755426646027,-480.0,0.00020114,2]
[379865300,1755426646037,-480.0,0.00020114,2]
[379865303,1755426646046,-610.76039595,0.00020114,2]
[379865306,1755426646055,-484.55179588,0.00020114,2]
[379865308,1755426646064,-480.0,0.00020114,2]
[379865311,1755426646073,-480.0,0.00020114,2]
[379865314,1755426646083,-447.22418856,0.00020114,2]
[379865317,1755426646092,-480.0,0.00020114,2]
[379865320,1755426646101,-825.66,0.00020114,2]
[379865323,1755426646111,-480.0,0.00020114,2]
[379865326,1755426646121,-480.0,0.00020114,2]
[379865330,1755426646131,-480.0,0.00020114,2]
[379865333,1755426646140,-480.0,0.00020114,2]
[379865336,1755426646150,-480.0,0.00020114,2]
[379865339,1755426646159,-480.0,0.00020114,2]
[379865342,1755426646169,-480.0,0.00020114,2]
[379865345,1755426646178,-472.01993421,0.00020114,2]
[379865348,1755426646199,-1952.02006579,0.00020114,2]
[379865350,1755426646208,-480.0,0.00020114,2]
[379865352,1755426646217,-588.15,0.00020114,2]
[379865354,1755426646227,-480.0,0.00020114,2]
[379865356,1755426646237,-480.0,0.00020114,2]
[379865359,1755426646246,-480.0,0.00020114,2]
[379865362,1755426646255,-480.0,0.00020114,2]
[379865365,1755426646265,-419.60145679,0.00020114,2]
[379865368,1755426646274,-480.0,0.00020114,2]
[379865371,1755426646284,-177.38209505,0.00020114,2]
[379865375,1755426646296,-302.61790495,0.00020114,2]
[379865378,1755426646305,-1814.86,0.00020114,2]
[379865381,1755426646315,-480.0,0.00020114,2]
[379865384,1755426646324,-480.0,0.00020114,2]
[379865387,1755426646333,-480.0,0.00020116,2]
[379865390,1755426646343,-433.60828797,0.00020116,2]
[379865392,1755426646352,-200.0,0.00020135,20]
[379865396,1755426646362,-200.0,0.00020135,20]
[379865398,1755426646373,-200.0,0.00020135,20]
[379865402,1755426646382,-200.0,0.00020135,20]
[379865404,1755426646392,-200.0,0.00020135,20]
[379865405,1755426646402,-200.0,0.00020135,20]
[379865407,1755426646412,-200.0,0.00020135,20]
[379865410,1755426646421,-200.0,0.00020135,20]
[379865411,1755426646433,-200.0,0.00020135,20]
[379865414,1755426646444,-200.0,0.00020135,20]
[379865416,1755426646454,-168.0,0.00020141,2]
[379865418,1755426646463,-478.0,0.0002017,2]
[379865420,1755426646472,-480.0,0.00020186,2]
[379865422,1755426646481,-480.0,0.00020186,2]
[379865423,1755426646490,-1816.89,0.00020186,2]
[379865425,1755426646499,-480.0,0.00020186,2]
[379865427,1755426646509,-460.0,0.00020186,2]
[379865429,1755426646518,-480.0,0.00020187,2]
[379865431,1755426646527,-421.12310357,0.00020187,2]
[379865433,1755426646536,-535.70583263,0.00020187,2]
[379865435,1755426646546,-490.38087552,0.00020187,2]
[379865438,1755426646555,-279.30521901,0.00020187,2]
[379865440,1755426646564,-480.0,0.00020187,2]
[379865442,1755426646574,-480.0,0.00020187,2]
[379865443,1755426646583,-480.0,0.00020187,2]
[379865445,1755426646592,-537.23,0.00020187,2]
[379865447,1755426646601,-142.16580324,0.00020187,2]
[379865450,1755426646613,-963.03419676,0.00020187,2]
[379865452,1755426646622,-480.0,0.00020187,2]
[379865454,1755426646631,-480.0,0.00020187,2]
[379865456,1755426646640,-480.0,0.00020187,2]
[379865458,1755426646649,-480.0,0.00020187,2]
[379865459,1755426646658,-480.0,0.00020187,2]
[379865461,1755426646668,-534.74,0.00020187,2]
[379865463,1755426646677,-480.0,0.00020187,2]
[379865465,1755426646686,-480.0,0.00020187,2]
[379865467,1755426646695,-480.0,0.00020187,2]
[379865469,1755426646705,-304.02423275,0.00020187,2]
[379865472,1755426646716,-500.79876873,0.00020187,2]
[379865474,1755426646728,-1715.45699852,0.00020187,2]
[379865476,1755426646736,-166.59158634,0.00020187,2]
[379865480,1755426646769,495.19840649,0.00019565,2]
[379865968,1755426651751,-500.0,0.00019638,2]
[379865970,1755426651761,-506.15245425,0.00019638,2]
[379865973,1755426651771,-500.0,0.00019638,2]
[379865975,1755426651780,-500.0,0.00019638,2]
[379865977,1755426651790,-500.0,0.00019638,2]
[379865979,1755426651800,-500.0,0.00019638,2]
[379865980,1755426651809,-171.6936672,0.00019638,2]
[379865982,1755426651819,-500.0,0.00019638,2]
[379865984,1755426651828,-500.0,0.00019638,2]
[379865986,1755426651839,-500.0,0.00019638,2]
[379865988,1755426651849,-500.0,0.00019638,2]
[379865990,1755426651858,-500.0,0.00019638,2]
[379865992,1755426651869,-480.0,0.00019639,2]
[379865994,1755426651878,-500.0,0.0001974,2]
[379865996,1755426651888,-480.0,0.00020186,2]
[379865998,1755426651898,-313.40841366,0.00020187,2]
[379866000,1755426651912,-480.0,0.00020187,2]
[379866002,1755426651922,-480.0,0.00020187,2]
[379866004,1755426651932,-480.0,0.00020187,2]
[379866006,1755426651942,-480.0,0.00020187,2]
[379866008,1755426651953,-480.0,0.00020187,2]
[379866010,1755426651963,-480.0,0.00020187,2]
[379866012,1755426651973,-480.0,0.00020187,2]
[379866014,1755426651983,-480.0,0.00020187,2]
[379866016,1755426651993,-480.0,0.00020187,2]
[379866018,1755426652003,-480.0,0.00020187,2]
[379866020,1755426652012,-480.0,0.00020187,2]
[379866022,1755426652021,-1544.71,0.00020187,2]
[379866024,1755426652030,-770.21,0.00020187,2]
[379866026,1755426652041,-480.0,0.00020187,2]
[379866028,1755426652050,-2433.88,0.00020187,2]
[379866030,1755426652059,-480.0,0.00020187,2]
[379866032,1755426652069,-480.0,0.00020187,2]
[379866034,1755426652078,-480.0,0.00020187,2]
[379866036,1755426652089,-486.06634239,0.00020187,2]
[379866038,1755426652099,-364.42090735,0.00020187,2]
[379866040,1755426652108,-1364.45,0.00020187,2]
[379866042,1755426652121,-480.0,0.00020187,2]
[379866044,1755426652130,-480.0,0.00020187,2]
[379866046,1755426652140,-494.80484904,0.00020187,2]
[379866048,1755426652150,-480.0,0.00020187,2]
[379866050,1755426652159,-480.0,0.00020187,2]
[379866052,1755426652168,-480.0,0.00020187,2]
[379866054,1755426652178,-480.0,0.00020187,2]
[379866056,1755426652187,-632.69,0.00020187,2]
[379866058,1755426652197,-480.0,0.00020187,2]
[379866060,1755426652207,-3797.65,0.00020187,2]
[379866062,1755426652216,-480.0,0.00020187,2]
[379866064,1755426652226,-480.0,0.00020187,2]
[379866066,1755426652236,-480.0,0.00020187,2]
[379866072,1755426652247,-480.0,0.00020187,2]
[379866073,1755426652383,-540.60243865,0.00020187,2]
[379866074,1755426652393,-480.0,0.00020187,2]
[379866075,1755426652404,-837.64,0.00020187,2]
[379866076,1755426652413,-1213.17,0.00020187,2]
[379866077,1755426652423,-480.0,0.00020187,2]
[379866078,1755426652432,-493.25773968,0.00020187,2]
[379866079,1755426652442,-894.66,0.00020187,2]
[379866080,1755426652452,-2025.82,0.00020187,2]
[379866081,1755426652461,-466.94380161,0.00020187,2]
[379866082,1755426652470,-480.0,0.00020187,2]
[379866083,1755426652480,-716.1,0.00020187,2]
[379866084,1755426652489,-480.0,0.00020187,2]
[379866085,1755426652498,-790.13,0.00020187,2]
[379866086,1755426652507,-480.0,0.00020187,2]
[379866087,1755426652516,-480.0,0.00020187,2]
[379866088,1755426652526,-306.142688,0.00020187,2]
[379866089,1755426652535,-460.0,0.00020188,2]
[379866090,1755426652545,-460.0,0.00020188,2]
[379866091,1755426652554,-480.0,0.00020188,2]
[379866092,1755426652563,-460.0,0.00020188,2]
[379866093,1755426652572,-480.0,0.00020188,2]
[379866094,1755426652581,-480.0,0.00020188,2]
[379866095,1755426652591,-480.0,0.00020188,2]
[379866096,1755426652600,-606.77496654,0.00020188,2]
[379866097,1755426652609,-540.98069045,0.00020188,2]
[379866098,1755426652619,-520.59061412,0.00020188,2]
[379866099,1755426652628,-480.0,0.00020188,2]
[379866100,1755426652638,-480.0,0.00020188,2]
[379866101,1755426652647,-480.0,0.00020188,2]
[379866102,1755426652657,-480.0,0.00020188,2]
[379866104,1755426652666,-480.0,0.00020188,2]
[379866105,1755426652675,-480.0,0.00020188,2]
[379866106,1755426652686,-480.0,0.00020188,2]
[379866107,1755426652695,-480.0,0.00020188,2]
[379866109,1755426652705,-480.0,0.00020188,2]
[379866111,1755426652714,-480.0,0.00020188,2]
[379866113,1755426652724,-480.0,0.00020188,2]
[379866115,1755426652735,-480.0,0.00020188,2]
[379866117,1755426652744,-480.0,0.00020188,2]
[379866119,1755426652754,-480.0,0.00020188,2]
[379866121,1755426652763,-480.0,0.00020188,2]
[379866123,1755426652773,-480.0,0.00020188,2]
[379866125,1755426652782,-480.0,0.00020188,2]
[379866127,1755426652791,-480.0,0.00020188,2]
[379866129,1755426652801,-424.29339521,0.00020188,2]
[379866131,1755426652810,-480.0,0.00020188,2]
[379866133,1755426652819,-481.51159648,0.00020188,2]
[379866135,1755426652828,-480.0,0.00020188,2]
[379866137,1755426652838,-461.66252433,0.00020188,2]
[379866139,1755426652847,-480.0,0.00020188,2]
[379866140,1755426652857,-442.07164321,0.00020188,2]
[379866142,1755426652866,-480.0,0.00020188,2]
[379866144,1755426652877,-177.71711157,0.00020188,2]
[379866146,1755426652886,-480.0,0.00020188,2]
[379866148,1755426652896,-188.44,0.00020188,2]
[379866150,1755426652905,-480.0,0.00020188,2]
[379866152,1755426652915,-480.0,0.00020188,2]
[379866154,1755426652924,-480.0,0.00020188,2]
[379866156,1755426652934,-480.0,0.00020188,2]
[379866158,1755426652943,-480.0,0.00020188,2]
[379866160,1755426652952,-480.0,0.00020188,2]
[379866162,1755426652962,-480.0,0.00020188,2]
[379866164,1755426652972,-480.0,0.00020188,2]
[379866166,1755426652981,-750.92,0.00020188,2]
[379866168,1755426652990,-484.11274446,0.00020188,2]
[379866170,1755426652999,-242.78827076,0.00020188,2]
[379866171,1755426653008,-497.91806158,0.00020188,2]
[379866173,1755426653017,-480.0,0.00020188,2]
[379866175,1755426653027,-495.81452259,0.00020188,2]
[379866177,1755426653036,-480.0,0.00020188,2]
[379866179,1755426653045,-480.0,0.00020188,2]
[379866181,1755426653054,-480.0,0.00020188,2]
[379866183,1755426653064,-271.15478048,0.00020188,2]
[379866185,1755426653073,-480.0,0.00020188,2]
[379866187,1755426653083,-151.0,0.000202,4]
[379866189,1755426653092,-151.0,0.000202,4]
[379866191,1755426653102,-762.35,0.00020218,2]
[379866193,1755426653111,-600.0,0.00020235,20]
[379866195,1755426653121,-537.2,0.00020252,2]
[379866197,1755426653130,-168.0,0.00020268,2]
[379866199,1755426653140,-601.65586863,0.00020288,2]
[379866201,1755426653150,-6770.84,0.00020288,2]
[379866203,1755426653160,-480.0,0.00020288,2]
[379866205,1755426653169,-688.55,0.00020288,2]
[379866207,1755426653179,-480.0,0.00020288,2]
[379866208,1755426653188,-480.0,0.00020288,2]
[379866210,1755426653197,-1361.97,0.00020288,2]
[379866212,1755426653207,-729.95,0.00020289,2]
[379866214,1755426653217,-480.0,0.00020289,2]
[379866216,1755426653227,-480.0,0.00020289,2]
[379866218,1755426653236,-480.0,0.00020289,2]
[379866220,1755426653246,-480.0,0.00020289,2]
[379866222,1755426653255,-480.0,0.00020289,2]
[379866224,1755426653265,-1011.26,0.00020289,2]
[379866226,1755426653274,-480.0,0.00020289,2]
[379866228,1755426653284,-480.0,0.00020289,2]
[379866230,1755426653293,-511.45,0.00020289,2]
[379866232,1755426653303,-735.69,0.00020289,2]
[379866234,1755426653313,-480.0,0.00020289,2]
[379866236,1755426653323,-480.0,0.00020289,2]
[379866238,1755426653332,-480.0,0.00020289,2]
[379866240,1755426653341,-596.31160832,0.00020289,2]
[379866242,1755426653351,-480.0,0.00020289,2]
[379866244,1755426653360,-348.11093746,0.00020289,2]
[379866246,1755426653371,-480.0,0.00020289,2]
[379866248,1755426653380,-480.0,0.00020289,2]
[379866250,1755426653390,-480.0,0.00020289,2]
[379866252,1755426653399,-151.0,0.000203,4]
[379866254,1755426653409,-9069.32654914,0.00020318,2]
[379866256,1755426653419,-212.58784812,0.00020321,2]
[379866258,1755426653428,-1000.0,0.00020321,2]
[379866260,1755426653438,-282.13211643,0.00020321,2]
[379866262,1755426653447,-697.5264365,0.00020321,2]
[379866264,1755426653457,-1000.0,0.00020321,2]
[379866266,1755426653467,-1000.0,0.00020321,2]
[379866268,1755426653476,-500.0,0.00020321,2]
[379866270,1755426653485,-1000.0,0.00020321,2]
[379866272,1755426653495,-501.07153285,0.00020321,2]
[379866274,1755426653504,-1000.0,0.00020321,2]
[379866276,1755426653514,-520.92936452,0.00020321,2]
[379866278,1755426653523,-1000.0,0.00020321,2]
[379866280,1755426653533,-1000.0,0.00020321,2]
[379866282,1755426653543,-1000.0,0.00020321,2]
[379866284,1755426653554,-1000.0,0.00020321,2]
[379866286,1755426653564,-1000.0,0.00020321,2]
[379866288,1755426653573,-1000.0,0.00020321,2]
[379866290,1755426653583,-500.88053432,0.00020321,2]
[379866292,1755426653592,-503.19760931,0.00020321,2]
[379866294,1755426653602,-1000.0,0.00020321,2]
[379866296,1755426653611,-1000.0,0.00020321,2]
[379866297,1755426653621,-1000.0,0.00020321,2]
[379866300,1755426653631,-1000.0,0.00020321,2]
[379866302,1755426653641,-1000.0,0.00020321,2]
[379866303,1755426653650,-500.0,0.00020321,2]
[379866305,1755426653659,-160.1676773,0.00020329,2]
[379866308,1755426653671,-5086.38,0.00020387,2]
[379866309,1755426653681,-413.77504946,0.00020387,2]
[379866311,1755426653690,-9385.83,0.00020387,2]
[379866313,1755426653699,-893.29,0.00020387,2]
[379866315,1755426653709,-480.0,0.00020388,2]
[379866317,1755426653718,-480.0,0.00020388,2]
[379866319,1755426653727,-480.0,0.00020388,2]
[379866321,1755426653737,-485.40935309,0.00020388,2]
[379866323,1755426653746,-378.92277035,0.00020388,2]
[379866325,1755426653755,-312.79,0.00020388,2]
[379866327,1755426653765,-825.66,0.00020388,2]
[379866329,1755426653774,-480.0,0.00020388,2]
[379866331,1755426653783,-480.0,0.00020388,2]
[379866333,1755426653793,-480.0,0.00020388,2]
[379866335,1755426653802,-567.67,0.00020388,2]
[379866337,1755426653811,-480.0,0.00020388,2]
[379866339,1755426653821,-480.0,0.00020388,2]
[379866341,1755426653830,-2424.04,0.00020388,2]
[379866343,1755426653840,-480.0,0.00020388,2]
[379866345,1755426653849,-588.15,0.00020388,2]
[379866347,1755426653859,-480.0,0.00020388,2]
[379866349,1755426653868,-480.0,0.00020388,2]
[379866351,1755426653878,-480.0,0.00020388,2]
[379866353,1755426653888,-480.0,0.00020388,2]
[379866355,1755426653897,-480.0,0.00020388,2]
[379866357,1755426653910,-480.0,0.00020388,2]
[379866359,1755426653919,-1814.86,0.00020388,2]
[379866361,1755426653929,-197.41,0.00020388,2]
[379866363,1755426653938,-248.12253601,0.00020388,2]
[379866365,1755426653948,-480.0,0.0002039,2]
[379866367,1755426653957,-537.2,0.00020397,2]
[379866369,1755426653966,-151.0,0.000204,3]
[379866371,1755426653976,-1372.67014139,0.00020403,2]
[379866373,1755426653987,-480.0,0.0002046,2]
[379866375,1755426653996,-480.0,0.0002046,2]
[379866377,1755426654006,-1816.89,0.0002046,2]
[379866379,1755426654015,-480.0,0.0002046,2]
[379866381,1755426654024,-480.0,0.0002046,2]
[379866383,1755426654034,-480.0,0.00020461,2]
[379866385,1755426654043,-480.0,0.00020461,2]
[379866387,1755426654053,-480.0,0.00020461,2]
[379866389,1755426654063,-460.0,0.00020461,2]
[379866391,1755426654072,-537.23,0.00020461,2]
[379866392,1755426654082,-1105.2,0.00020461,2]
[379866394,1755426654091,-480.0,0.00020461,2]
[379866396,1755426654100,-485.66630083,0.00020461,2]
[379866398,1755426654110,-480.0,0.00020461,2]
[379866400,1755426654120,-480.0,0.00020461,2]
[379866402,1755426654130,-534.74,0.00020461,2]
[379866404,1755426654140,-480.0,0.00020461,2]
[379866406,1755426654150,-480.0,0.00020461,2]
[379866408,1755426654159,-480.0,0.00020461,2]
[379866410,1755426654169,-2520.28,0.00020461,2]
[379866412,1755426654178,-480.0,0.00020461,2]
[379866414,1755426654188,-480.0,0.00020461,2]
[379866416,1755426654198,-480.0,0.00020461,2]
[379866418,1755426654207,-480.0,0.00020461,2]
[379866420,1755426654217,-480.0,0.00020461,2]
[379866422,1755426654227,-480.0,0.00020461,2]
[379866424,1755426654237,-480.0,0.00020461,2]
[379866426,1755426654247,-480.0,0.00020461,2]
[379866428,1755426654257,-480.0,0.00020461,2]
[379866430,1755426654267,-480.0,0.00020461,2]
[379866432,1755426654277,-480.0,0.00020461,2]
[379866434,1755426654287,-1544.71,0.00020461,2]
[379866436,1755426654297,-770.21,0.00020461,2]
[379866438,1755426654306,-480.0,0.00020461,2]
[379866440,1755426654315,-2433.88,0.00020461,2]
[379866442,1755426654325,-480.0,0.00020461,2]
[379866444,1755426654336,-480.0,0.00020461,2]
[379866446,1755426654346,-480.0,0.00020461,2]
[379866448,1755426654356,-1364.45,0.00020461,2]
[379866450,1755426654365,-541.55,0.00020461,2]
[379866452,1755426654376,-480.0,0.00020461,2]
[379866454,1755426654386,-480.0,0.00020461,2]
[379866456,1755426654396,-480.0,0.00020461,2]
[379866458,1755426654406,-588.06876438,0.00020461,2]
[379866460,1755426654415,-480.0,0.00020461,2]
[379866462,1755426654425,-632.69,0.00020461,2]
[379866464,1755426654434,-480.0,0.00020461,2]
[379866466,1755426654444,-3797.65,0.00020461,2]
[379866468,1755426654453,-480.0,0.00020461,2]
[379866470,1755426654463,-480.0,0.00020461,2]
[379866472,1755426654472,-480.0,0.00020461,2]
[379866474,1755426654482,-193.70704487,0.00020461,2]
[379866476,1755426654494,-480.0,0.00020461,2]
[379866478,1755426654503,-837.64,0.00020461,2]
[379866480,1755426654512,-1213.17,0.00020461,2]
[379866482,1755426654521,-894.66,0.00020461,2]
[379866484,1755426654531,-2025.82,0.00020461,2]
[379866486,1755426654540,-480.0,0.00020461,2]
[379866488,1755426654550,-716.1,0.00020461,2]
[379866490,1755426654560,-480.0,0.00020461,2]
[379866492,1755426654569,-790.13,0.00020461,2]
[379866494,1755426654579,-480.0,0.00020461,2]
[379866497,1755426654598,-480.0,0.00020461,2]
[379866498,1755426654607,-460.0,0.00020462,2]
[379866500,1755426654616,-460.0,0.00020462,2]
[379866502,1755426654626,-480.0,0.00020462,2]
[379866504,1755426654636,-480.0,0.00020462,2]
[379866506,1755426654645,-400.0,0.00020462,2]
[379866508,1755426654655,-480.0,0.00020462,2]
[379866510,1755426654664,-460.0,0.00020462,2]
[379866512,1755426654674,-404.35507491,0.00020462,2]
[379866514,1755426654683,-460.0,0.00020462,2]
[379866521,1755426654740,-460.0,0.00020462,2]
[379866523,1755426654750,-460.0,0.00020462,2]
[379866525,1755426654760,-627.31,0.00020462,2]
[379866527,1755426654769,-480.0,0.00020462,2]
[379866529,1755426654778,-460.0,0.00020462,2]
[379866531,1755426654787,-440.0,0.00020462,2]
[379866533,1755426654797,-480.0,0.00020462,2]
[379866535,1755426654806,-460.0,0.00020462,2]
[379866537,1755426654815,-460.0,0.00020462,2]
[379866539,1755426654824,-480.0,0.00020462,2]
[379866541,1755426654834,-480.0,0.00020462,2]
[379866543,1755426654844,-460.0,0.00020462,2]
[379866545,1755426654854,-480.0,0.00020462,2]
[379866546,1755426654863,-440.0,0.00020462,2]
[379866548,1755426654872,-464.05701967,0.00020462,2]
[379866550,1755426654881,-480.0,0.00020462,2]
[379866552,1755426654891,-480.0,0.00020462,2]
[379866554,1755426654900,-480.0,0.00020462,2]
[379866556,1755426654913,-480.0,0.00020462,2]
[379866558,1755426654923,-480.0,0.00020462,2]
[379866560,1755426654932,-480.0,0.00020462,2]
[379866562,1755426654942,-480.0,0.00020462,2]
[379866564,1755426654951,-750.92,0.00020462,2]
[379866566,1755426654961,-480.0,0.00020462,2]
[379866568,1755426654970,-480.0,0.00020462,2]
[379866570,1755426654979,-440.0,0.00020462,2]
[379866572,1755426654988,-480.0,0.00020462,2]
[379866574,1755426654997,-360.0,0.00020462,2]
[379866576,1755426655007,-160.1676773,0.00020466,2]
[379866578,1755426655016,-151.0,0.00020473,2]
[379866580,1755426655026,-151.87949869,0.00020473,2]
[379866582,1755426655035,-704.85445739,0.00020473,2]
[379866584,1755426655044,-274.545001,0.000205,2]
[379866586,1755426655053,-274.545001,0.000205,2]
[379866587,1755426655062,-274.545001,0.000205,2]
[379866589,1755426655071,-274.545001,0.000205,2]
[379866591,1755426655080,-151.0,0.000205,2]
[379866592,1755426655089,-151.0,0.000205,2]
[379866593,1755426655098,-259.343331,0.000205,2]
[379866594,1755426655107,-259.343331,0.000205,2]
[379866595,1755426655116,-151.0,0.000205,2]
[379866596,1755426655126,-259.343331,0.000205,2]
[379866597,1755426655135,-151.0,0.000205,2]
[379866598,1755426655144,-259.343331,0.000205,2]
[379866599,1755426655153,-647.155389,0.000205,2]
[379866600,1755426655162,-647.155389,0.000205,2]
[379866601,1755426655171,-647.155389,0.000205,2]
[379866603,1755426655181,-647.155389,0.000205,2]
[379866605,1755426655190,-151.0,0.000205,2]
[379866607,1755426655199,-153.243757,0.000205,2]
[379866609,1755426655208,-151.0,0.000205,4]
[379866611,1755426655217,-142137.81,0.000205,2]
[379866613,1755426655227,-34150.89,0.000205,2]
[379866615,1755426655236,-242816.96607372,0.000205,2]
[379866676,1755426655804,-480.0,0.00019638,2]
[379866678,1755426655814,-480.0,0.00019638,2]
[379866680,1755426655824,-500.0,0.00019638,2]
[379866682,1755426655834,-500.0,0.00019638,2]
[379866684,1755426655843,-500.0,0.00019638,2]
[379866686,1755426655853,-195.0,0.00019638,2]
[379866688,1755426655862,-500.0,0.00019638,2]
[379866690,1755426655871,-500.0,0.00019638,2]
[379866692,1755426655881,-500.0,0.00019638,2]
[379866694,1755426655890,-500.0,0.00019638,2]
[379866696,1755426655901,-500.0,0.00019638,2]
[379866698,1755426655918,-458.18147834,0.00019638,2]
[379866700,1755426655928,-500.0,0.00019638,2]
[379866702,1755426655937,-500.0,0.00019638,2]
[379866704,1755426655946,-500.0,0.00019638,2]
[379866706,1755426655957,-221.48810785,0.00019638,2]
[379866712,1755426656014,480.0,0.00019565,2]
[379866743,1755426656302,-278.51189215,0.00019638,2]
[379866745,1755426656312,-104.9815175,0.00019638,2]
[379866789,1755426656721,480.0,0.00019565,2]
[379867347,1755426662719,327.37363095,0.000189,2]
[379867805,1755426667367,425.99357,0.00013699,2]
[379867921,1755426668534,50270.4898208,0.00019076,2]
[379867943,1755426668864,4541.65,0.00019565,2]
[379868766,1755426677629,2433.58,0.00019566,2]
[379868993,1755426680925,480.0,0.00019565,2]
[379869138,1755426683893,339.88572831,0.00019566,2]
[379870497,1755426699623,724.9413519,0.00018813,2]
[379871155,1755426706369,480.0,0.00019566,2]
[379871230,1755426707132,366.62,0.0001928,2]
[379871273,1755426708793,480.0,0.00019566,2]
[379871293,1755426710900,480.0,0.00019566,2]
[379871307,1755426732198,480.0,0.00019565,2]
[379871308,1755426734881,480.0,0.00019566,2]
[379871309,1755426745018,480.0,0.00019566,2]
[379871310,1755426750994,1700.26,0.00019565,2]